Workbook

Sheet WellOps
AE1: r2
AE2: 2 | AF2: ABANDON
AB3: 1 | AF3: ADD LEG(S)
C4: APPLICATION FOR APPROVAL OF WELL OPERATIONS | Z4: 1 | AB4: 1 | AC4: Yes | AF4: CONVERT
Z5: 1 | AB5: 1 | AC5: No | AF5: CASING REPAIR
C6: In compliance with Section 47 of the Drilling and Production Regulation, application is hereby made for approval of the following operations: | AB6: 1 | AF6: DEEPEN
AB7: 1 | AF7: ISOLATE CASING LEAK
AB8: 1 | AF8: RECOMPLETE
C9: PROPOSED WELL OPERATION: | E9: =IF($AE$2=1,"",IF($AE$2=2,"ABANDON",IF($AE$2=3,"ADD LEG(S)", IF($AE$2=4, "CONVERT", IF($AE$2=5,"CASING REPAIR", IF($AE$2=6, "DEEPEN",IF($AE$2=7,"ISOLATE CASING LEAK", IF($AE$2=8,"RECOMPLETE",IF($AE$2=9,"REMOVE CASING", IF($AE$2=10,"SUSPEND","")))))))))) -> ABANDON | I9: Planned Commencement Date: | AB9: 1 | AF9: REMOVE CASING
AB10: 1 | AF10: SUSPEND
C11: Name of Licensee: | AB11: 1
C12: C o . R e p r e s e n t a t I v e : | G12: Phone No: | J12: Email:
C14: WELL INFORMATION: | AK14: 0
C15: Licence No. | D15: Surface Location | E15: Unique Well Identifier | G15: Current Status | H15: Casing Issues or Stuck Fish? | J15: Reason for Proposed Operations | AK15: =AK14+1 -> 1
G16: =IF(C16="","", IF(AE16=1,"",IF(AE16=2,"COOP",IF(AE16=3,"Susp.",IF(AE16=4,"SWD",IF(AE16=5,"Shut-in",IF(AE16=6,"Injector"))))))) ->  | H16: =IF(C16="","",IF(AB3=1,"",IF(AB3=2,"Yes",IF(AB3=3,"No","")))) ->  | O16: =IF(AND(OR($AE$2=4, $AE$2=10), C16<>""),1, 0) -> 0 | P16: =IF($AE$2=4,"CONV",(IF($AE$2=10,"SUSP","CONV"))) -> CONV | AE16: 1 | AK16: =AK15+1 -> 2
G17: =IF(C17="","", IF(AE17=1,"",IF(AE17=2,"COOP",IF(AE17=3,"Susp.",IF(AE17=4,"SWD",IF(AE17=5,"Shut-in",IF(AE17=6,"Injector"))))))) ->  | H17: =IF(C17="","",IF(AB4=1,"",IF(AB4=2,"Yes",IF(AB4=3,"No","")))) ->  | O17: =IF(AND(OR($AE$2=4, $AE$2=10), C17<>""),1, 0) -> 0 | P17: =IF($AE$2=4,"CONV",(IF($AE$2=10,"SUSP","CONV"))) -> CONV | AE17: 1 | AF17: COOP | AH17: Yes | AK17: 3
O18: 0 | P18: CONV | AC18: Approval No: 1 | AE18: 1 | AF18: Susp. | AH18: No | AK18: 4
O19: 0 | P19: CONV | AC19: Expiry: | AE19: 1 | AF19: SWD | AK19: 5
O20: 0 | P20: CONV | AE20: 1 | AF20: Shut-in | AK20: 6
O21: 0 | P21: CONV | AE21: 1 | AF21: Injector | AK21: 7
O22: 0 | P22: CONV | AE22: 1 | AK22: 8
O23: 0 | P23: CONV | AE23: 1 | AK23: 9
H24: =IF(C24="","",IF(AB11=1,"",IF(AB11=2,"Yes",IF(AB11=3,"No","")))) ->  | O24: =IF(OR($AE$2=4, $AE$2=10), 0, 1) -> 1 | P24: =IF($AE$2=2,"AB",(IF($AE$2=1,"ISO LEAK/REM CAS",IF($AE$2=3,"ADD LEG",IF($AE$2=5,"CAS REP",IF($AE$2=6,"DEEP",IF($AE$2=7,"ISO LEAK/REM CAS",IF($AE$2=8,"RECOMP",IF($AE$2=9,"ISO LEAK/REM CAS","AB"))))))))) -> AB | AE24: 1
C25: Legend: COOP - Capable of Oil Production / SWD - Salt Water Disposal / Susp. - Suspended | O25: 1
O26: 1
C27: Casing Details: | E27: Size (mm) | G27: Weight (kg/m) | I27: Depth (m) | L27: Cemented to Surface? | O27: =IF(OR($AE$2=4, $AE$2=10), 0, 1) -> 1 | P27: =IF($AE$2=2,"AB",(IF($AE$2=1,"ISO LEAK/REM CAS",IF($AE$2=3,"ADD LEG",IF($AE$2=5,"CAS REP",IF($AE$2=6,"DEEP",IF($AE$2=7,"ISO LEAK/REM CAS",IF($AE$2=8,"RECOMP",IF($AE$2=9,"ISO LEAK/REM CAS","AB"))))))))) -> AB
C28: Surface Casing | L28: =IF(Z4=1,"",IF(Z4=2,"Yes","No")) ->  | O28: 1 | P28: AB
C29: Int. / Production Casing | L29: =IF(Z5=1,"",IF(Z5=2,"Yes","No")) ->  | O29: 1 | P29: AB
O30: 1 | P30: AB
C31: Perforation Intervals (m) | G31: Plugback Total Depth (m) | J31: Openhole Interval (m) | M31: Total Depth (m) | O31: 1 | P31: AB
O32: 1 | P32: AB
O33: 0
O34: 1
O35: 1
O36: 1
C37: Date | J37: Signature of Applicant | O37: 1
O38: 1
O39: 0
O40: 0
O41: 0 | AK41: =AK23+1 -> 10
O42: 0 | AC42: date issue | AE42: TRUE | AF42: roundoff near | AH42: roundoff far | AK42: 11
O43: 0 | AA43: 2018-11-28 | AC43: =AJ47+C527 -> 43664.36322 | AD43: =EOMONTH(AE43,0) -> 43860 | AE43: =AC43+180 -> 43844.36322 | AF43: =AD43+1 -> 43861 | AG43: =EOMONTH(AE43, -1) -> 43829 | AH43: =AG43+1 -> 43830 | AK43: 12
O44: 0 | AC44: =AC43 -> 2023-07-19T08:43:02.420 | AD44: 2024-01-31 | AE44: 2024-01-15T08:43:02.420 | AF44: 2024-02-01 | AG44: 2023-12-31 | AH44: 2024-01-01 | AK44: 13
O45: 0 | AK45: 14
C46: For assistance in completing this form, please call at 1-800-223-5215 (toll free). | O46: 1 | AC46: =format(AC44,"mm/yyyy") ->  | AK46: 15
C47: F O R D E P A R T M E N T U S E O N L Y | O47: 1 | AC47: suspexp date | AE47: =DAY(C527) -> 19 | AI47: 366 | AJ47: =AI47-366 -> 0 | AK47: 16
I48: This approval expires on: | M48: =IF(AE2=10, AC48, IF(AE47<=15,AH44,AF44)) -> 2024-02-01 | O48: 1 | AC48: =AC43+45 -> 43709.36322 | AK48: 17
J49: .. | O49: 1 | AK49: 18
C50: This application has been approved subject to the following terms and conditions: | O50: 1 | AK50: 19
O51: 1 | AK51: 20
C52: 1.) | D52: The Field District office is to be notified prior to commencing operations. All pressure tests must be witnessed by an | N52: ABANDONMENT | O52: =IF(D52="",0,1) -> 1 | P52: AB | S52: =T52&".)" -> 1.) | T52: 1 | AA52: 2013-05-02 | AK52: 21 | BG52: The Field District office is to be notified prior to commencing operations. All pressure tests must be witnessed by an
D53: Inspector. | O53: =IF(D53="",0,1) -> 1 | P53: AB | AK53: 22 | BG53: Inspector.
O54: 0 | P54: AB | AK54: 23
C55: =IF(D55="","", S55) -> 2.) | D55: Co. is to contact the surface owner at least 24 hours prior to entering the lease. | O55: 1 | P55: AB | S55: =T55&".)" -> 2.) | T55: =IF(D55<>"",T52+1, T52) -> 2 | AC55: =AC50+45 -> 45 | AK55: 24 | BG55: Co. is to contact the surface owner at least 24 hours prior to entering the lease.
O56: 0 | P56: AB | AK56: 25
O57: 0 | P57: AB | AC57: =AC55 -> 45 | AE57: 1465 | AF57: =NOW() -> 43664.36322 | AK57: 26
C58: =IF(D58="","", S58) -> 3.) | D58: If the pressure test of the surface/production casing annulus fails, then Co. is to contact a Field petroleum | O58: 1 | P58: AB | S58: =T58&".)" -> 3.) | T58: =IF(D58<>"",T55+1, T55) -> 3 | AK58: 27 | BG58: If the pressure test of the surface/production casing annulus fails, then Co. is to contact a Field petroleum
D59: inspector prior to proceeding with the abandonment. | O59: 1 | P59: AB | AK59: 28 | BG59: inspector prior to proceeding with the abandonment.
O60: 0 | P60: AB | AK60: 29
C61: =IF(D61="","", S61) -> 4.) | D61: Co. is to ensure that proper procedures are exercised to ensure that the surface casing & vent are not frozen | O61: 1 | P61: AB | S61: =T61&".)" -> 4.) | T61: =IF(D61<>"",T58+1, T58) -> 4 | AK61: 30 | BG61: Co. is to ensure that proper procedures are exercised to ensure that the surface casing & vent are not frozen
D62: off for pressure testing during the winter months. | O62: 1 | P62: AB | AK62: 31 | BG62: off for pressure testing during the winter months.
O63: 0 | P63: AB | AK63: 32
C64: =IF(D64="","", S64) -> 5.) | D64: The flowline(s) is to be abandoned as per attached flowline abandonment form(s). | O64: 1 | P64: AB | S64: =T64&".)" -> 5.) | T64: =IF(D64<>"",T61+1, T61) -> 5 | AK64: 33 | BG64: The flowline(s) is to be abandoned as per attached flowline abandonment form(s).
O65: 0 | P65: AB | AK65: 34
O66: 0 | P66: AB | AK66: 35
C67: =IF(D67="","", S67) -> 6.) | D67: Our records indicate the top of Lower Amaranth to be at #### m (TVD) or #### m (MD), therefore the bottom | O67: 1 | P67: AB | S67: =T67&".)" -> 6.) | T67: =IF(D67<>"",T64+1, T64) -> 6 | AK67: 36 | BG67: Our records indicate the top of Lower Amaranth to be at #### m (TVD) or #### m (MD), therefore the bottom
D68: plug is to be set approximately 5m above the top of Lower Amaranth, at a depth not lower than #### m (TVD) | O68: 1 | P68: AB | AK68: 37 | BG68: plug is to be set approximately 5m above the top of Lower Amaranth, at a depth not lower than #### m (TVD)
D69: or #### m (MD). | O69: 1 | P69: AB | AK69: 38 | BG69: or #### m (MD).
C70: =IF(D70="","", S70) -> 7.) | D70: Our records indicate that there was no recorded cement returns therefore the wellbore will have to be | O70: 1 | P70: AB | S70: =T70&".)" -> 7.) | T70: =IF(D70<>"",T67+1, T67) -> 7 | AK70: 39 | BG70: Our records indicate that there was no recorded cement returns therefore the wellbore will have to be
D71: perforated at #### m and a 30m cement plug circulated. The top of the plug is to be at a depth not lower | O71: 1 | P71: AB | AK71: 40 | BG71: perforated at #### m and a 30m cement plug circulated. The top of the plug is to be at a depth not lower
D72: than XXXX m. | O72: 1 | P72: AB | AK72: 41 | BG72: than XXXX m.
C73: =IF(D73="","", S73) -> 8.) | D73: If Co. is unable to get proper circulation then they must contact a Field petroleum inspector prior to proceeding | O73: 1 | P73: AB | S73: =T73&".)" -> 8.) | T73: =IF(D73<>"",T70+1, T70) -> 8 | AK73: 42 | BG73: If Co. is unable to get proper circulation then they must contact a Field petroleum inspector prior to proceeding
D74: with the abandonment. | O74: 1 | P74: AB | AK74: 43 | BG74: with the abandonment.
O75: 0 | P75: AB | AK75: 44
C76: =IF(D76="","", S76) -> 9.) | D76: In lieu of a bridge plug and 8m of cement, Co. is required to run a continuous cement plug from below the | O76: 1 | P76: AB | S76: =T76&".)" -> 9.) | T76: =IF(D76<>"",T73+1, T73) -> 9 | AK76: 45 | BG76: In lieu of a bridge plug and 8m of cement, Co. is required to run a continuous cement plug from below the
D77: perforations to 15m above the top of the Lower Amaranth at a depth not lower than XXXX m. This plug would have | O77: 1 | P77: AB | AK77: 46 | BG77: perforations to 15m above the top of the Lower Amaranth at a depth not lower than XXXX m. This plug would have
D78: to be probed with a force of 18 kN, and after the plug is set the casing above the plug would have to be pressure tested to 3 500 kPa. | O78: 1 | P78: AB | AK78: 47 | BG78: to be probed with a force of 18 kN, and after the plug is set the casing above the plug would have to be pressure tested to 3 500 kPa.
C79: =IF(D79="","", S79) -> 10.) | D79: Our records indicate the surface casing shoe to be at XXXXX m (TVD), therefore the top plug is to be set 5m below | O79: 1 | P79: AB | S79: =T79&".)" -> 10.) | T79: =IF(D79<>"",T76+1, T76) -> 10 | AK79: 48 | BG79: Our records indicate the surface casing shoe to be at XXXXX m (TVD), therefore the top plug is to be set 5m below
D80: at a depth of XXXX m (TVD). | O80: 1 | P80: AB | AK80: 49 | BG80: at a depth of XXXX m (TVD).
O81: 0 | P81: AB | AK81: 50
C82: =IF(D82="","", S82) -> 11.) | D82: As per Subsection 45(3) of the regulation, Co. is to install wellhead equipment with minimum working pressure | O82: 1 | P82: AB | S82: =T82&".)" -> 11.) | T82: =IF(D82<>"",T79+1, T79) -> 11 | AK82: 51 | BG82: As per Subsection 45(3) of the regulation, Co. is to install wellhead equipment with minimum working pressure
D83: rating of 7 000 kPa or the maximum expected wellhead pressure, whichever is greater. | O83: 1 | P83: AB | AK83: 52 | BG83: rating of 7 000 kPa or the maximum expected wellhead pressure, whichever is greater.
O84: 0 | P84: AB | AK84: 53
C85: =IF(D85="","", S85) -> 12.) | D85: Our records show the OD of the XXXX casing is XXXX mm, please adjust your tools, materials and cementing | O85: 1 | P85: AB | S85: =T85&".)" -> 12.) | T85: =IF(D85<>"",T82+1, T82) -> 12 | AK85: 54 | BG85: Our records show the OD of the XXXX casing is XXXX mm, please adjust your tools, materials and cementing
D86: volumes accordingly. | O86: 1 | P86: AB | AK86: 55 | BG86: volumes accordingly.
O87: 0 | P87: AB | AK87: 56
C88: =IF(D88="","", S88) -> 13.) | D88: This area has significant potential for high volume shallow depth gas flows. Co. is to use extra caution | O88: 1 | P88: AB | S88: =T88&".)" -> 13.) | T88: =IF(D88<>"",T85+1, T85) -> 13 | AK88: 57 | BG88: This area has significant potential for high volume shallow depth gas flows. Co. is to use extra caution
D89: if the casing has to be perforated below the surface casing shoe. Please refer to Informational Notice 05-03 (attached) | O89: 1 | P89: AB | AK89: 58 | BG89: if the casing has to be perforated below the surface casing shoe. Please refer to Informational Notice 05-03 (attached)
O90: 0 | P90: AB | AK90: 59
C91: =IF(D91="","", S91) -> 14.) | D91: Our records indicate that there is a bottom bridge plug set at XXXX m. Reposition and reset the bridge plug not | O91: 1 | P91: AB | S91: =T91&".)" -> 14.) | T91: =IF(D91<>"",T88+1, T88) -> 14 | AK91: 60 | BG91: Our records indicate that there is a bottom bridge plug set at XXXX m. Reposition and reset the bridge plug not
D92: deeper than XXXX m TVD (XXXXm MD). If this is not possible, set another bridge plug not deeper than | O92: 1 | P92: AB | AK92: 61 | BG92: deeper than XXXX m TVD (XXXXm MD). If this is not possible, set another bridge plug not deeper than
D93: XXXX m TVD (XXXXm MD). In both options, place an 8 m cement on top of the plug | O93: 1 | P93: AB | AK93: 62 | BG93: XXXX m TVD (XXXXm MD). In both options, place an 8 m cement on top of the plug
C94: =IF(D94="","", S94) -> 15.) | D94: Our records indicate that there is a fish stuck throughout the hole down to approximately XXXX m TVD (XXXXm MD). | O94: 1 | P94: AB | S94: =T94&".)" -> 15.) | T94: =IF(D94<>"",T91+1, T91) -> 15 | AK94: 63 | BG94: Our records indicate that there is a fish stuck throughout the hole down to approximately XXXX m TVD (XXXXm MD).
D95: Co. is required to remove the fish or at least remove it from top down to the setting depth of | O95: 1 | P95: AB | AK95: 64 | BG95: Co. is required to remove the fish or at least remove it from top down to the setting depth of
D96: the bottom bridge plug at ##### m. | O96: 1 | P96: AB | AK96: 65 | BG96: the bottom bridge plug at ##### m.
C97: =IF(D97="","", S97) -> 16.) | D97: Our records indicate that there is a fish stuck in the hole at XXXXm TVD (XXXXm MD) with the top of the fish at | O97: 1 | P97: AB | S97: =T97&".)" -> 16.) | T97: =IF(D97<>"",T94+1, T94) -> 16 | AK97: =AK96+1 -> 66 | BG97: Our records indicate that there is a fish stuck in the hole at XXXXm TVD (XXXXm MD) with the top of the fish at
D98: XXXXm to XXXX m. Co. is required to remove the fish prior to setting the bottom bridge plug at XXXX m. | O98: 1 | P98: AB | AK98: 67 | BG98: XXXXm to XXXX m. Co. is required to remove the fish prior to setting the bottom bridge plug at XXXX m.
O99: 0 | P99: AB | AK99: 68
C100: =IF(D100="","", S100) -> 17.) | D100: Because this well is located in an area where the Lower Amaranth is not present, Co. is to set a bridge plug within 5 m | O100: 1 | P100: AB | S100: =T100&".)" -> 17.) | T100: =IF(D100<>"",T97+1, T97) -> 17 | AK100: 69 | BG100: Because this well is located in an area where the Lower Amaranth is not present, Co. is to set a bridge plug within 5 m
D101: from the topmost perforations and capped with approximately XXXX mMD-long continuous cement plug not lower | O101: 1 | P101: AB | AK101: 70 | BG101: from the topmost perforations and capped with approximately XXXX mMD-long continuous cement plug not lower
D102: than XXXX mMD or XXXX mTVD. | O102: 1 | P102: AB | AK102: 71 | BG102: than XXXX mMD or XXXX mTVD.
C103: =IF(D103="","", S103) ->  | O103: 0 | P103: AB | S103: =T103&".)" -> 17.) | T103: =IF(D103<>"",T100+1, T100) -> 17 | AK103: 72
O104: 0 | P104: AB | AK104: 73
O105: 0 | P105: AB | AK105: 74
C106: =IF(D106="","", S106) ->  | O106: 0 | P106: AB | S106: =T106&".)" -> 17.) | T106: =IF(D106<>"",T103+1, T103) -> 17 | AK106: 75
O107: 0 | P107: AB | AK107: 76
O108: 0 | P108: AB | AK108: 77
C109: =IF(D109="","", S109) ->  | O109: 0 | P109: AB | S109: =T109&".)" -> 17.) | T109: =IF(D109<>"",T106+1, T106) -> 17 | AK109: 78
O110: 0 | P110: AB | AK110: 79
O111: 0 | P111: AB | AK111: 80
C112: =IF(D112="","", S112) -> 18.) | D112: Because this well is located in an area where the Lower Amaranth is not present, Co. is to run approximately | O112: 1 | P112: AB | S112: =T112&".)" -> 18.) | T112: =IF(D112<>"",T109+1, T109) -> 18 | AK112: 81 | BG112: Because this well is located in an area where the Lower Amaranth is not present, Co. is to run approximately
D113: XXXX mMD long continuous cement plug from below the perforations to a depth not lower than Xxxx mTVD or | O113: 1 | P113: AB | AK113: 82 | BG113: XXXX mMD long continuous cement plug from below the perforations to a depth not lower than Xxxx mTVD or
D114: XXXX mMD. | O114: 1 | P114: AB | AK114: 83 | BG114: XXXX mMD.
C115: =IF(D115="","", S115) -> 19.) | D115: Because this well is located in an area where the Lower Amaranth is not present, Co. is to set a bridge plug at | O115: 1 | P115: AB | S115: =T115&".)" -> 19.) | T115: =IF(D115<>"",T112+1, T112) -> 19 | AK115: 84 | BG115: Because this well is located in an area where the Lower Amaranth is not present, Co. is to set a bridge plug at
D116: XXXX mMD or as low as possible and then run approximately XXXX mMD-long continuous cement plug to a depth | O116: 1 | P116: AB | AK116: 85 | BG116: XXXX mMD or as low as possible and then run approximately XXXX mMD-long continuous cement plug to a depth
D117: not lower than XXXX mMD. | O117: =IF(D117="",0,1) -> 1 | P117: AB | AK117: 86 | BG117: not lower than XXXX mMD.
O118: 0 | P118: AB | AK118: 87
O119: 0 | P119: AB | AK119: 88
O120: 0 | P120: AB | AK120: 89
C121: =IF(D121="","", S121) -> 20.) | D121: Co. is to ensure that the probable presence of stuck fishes in the hole starting at XXXXm TVD (XXXXm MD) | O121: 1 | P121: AB | S121: =T121&".)" -> 20.) | T121: =IF(D121<>"",T115+1, T115) -> 20 | AK121: 90 | BG121: Co. is to ensure that the probable presence of stuck fishes in the hole starting at XXXXm TVD (XXXXm MD)
D122: up will not affect Co. ability to abandon the well as per Section 47(2) of the regulation. As per Informational | O122: 1 | P122: AB | AK122: 91 | BG122: up will not affect Co. ability to abandon the well as per Section 47(2) of the regulation. As per Informational
D123: Notice 04-02, Co. must exert efforts to recover any fish stuck in the hole more than 15m above of the base | O123: 1 | P123: AB | AK123: 92 | BG123: Notice 04-02, Co. must exert efforts to recover any fish stuck in the hole more than 15m above of the base
D124: of the Upper Amaranth formation to ensure the bottom abandonment plug can effectively isolate the | O124: 1 | P124: AB | AK124: 93 | BG124: of the Upper Amaranth formation to ensure the bottom abandonment plug can effectively isolate the
D125: producing formation from the remainder of the wellbore. | O125: 1 | P125: AB | AK125: 94 | BG125: producing formation from the remainder of the wellbore.
O126: 0 | P126: AB | AK126: 95
C127: =IF(D127="","", S127) -> 21.) | D127: Co. is required to set a bridge plug above the XXXX perforations and pressure test, and if successful cap the | O127: 1 | P127: AB | S127: =T127&".)" -> 21.) | T127: =IF(D127<>"",T121+1, T121) -> 21 | AK127: 96 | BG127: Co. is required to set a bridge plug above the XXXX perforations and pressure test, and if successful cap the
D128: plug with 8m cement. Co. is then required to set a second bridge plug 5m above the base of the Amaranth | O128: 1 | P128: AB | AK128: 97 | BG128: plug with 8m cement. Co. is then required to set a second bridge plug 5m above the base of the Amaranth
D129: Evaporite at a depth not lower than XXXXm TVD (XXXX m MD) and cap with 8m cement or; in lieu of setting two | O129: 1 | P129: AB | AK129: 98 | BG129: Evaporite at a depth not lower than XXXXm TVD (XXXX m MD) and cap with 8m cement or; in lieu of setting two
D130: plugs, Co. may choose to run a continuous cement plug from below the Formation perforations to 15m above | O130: 1 | P130: AB | AK130: 99 | BG130: plugs, Co. may choose to run a continuous cement plug from below the Formation perforations to 15m above
D131: the base of the Amaranth Evaporite at a depth not lower than XXXXm TVD (XXXXm MD). This plug would have to | O131: 1 | P131: AB | AK131: 100 | BG131: the base of the Amaranth Evaporite at a depth not lower than XXXXm TVD (XXXXm MD). This plug would have to
D132: be probed with a force of 18 kN, and after the plug is set the casing above the plug would have to be pressure tested to 3 500 kPa. | O132: 1 | P132: AB | AK132: 101 | BG132: be probed with a force of 18 kN, and after the plug is set the casing above the plug would have to be pressure tested to 3 500 kPa.
O133: 0 | AK133: 102
O134: 0 | AK134: 103
C135: 1.) | D135: The Field District office is to be notified prior to commencing operations. All pressure tests must be witnessed by | N135: CONVERSION | O135: 1 | P135: CONV | S135: =T135&".)" -> 1.) | T135: 1 | AK135: 104
D136: an Inspector. | O136: 1 | P136: CONV | AK136: 105
O137: 0 | P137: CONV | AK137: 106
C138: =IF(D138="","", S138) -> 2.) | D138: The conversion of this well(s) to a water injection well, as part of the Place Unit No. ##, qualifies under the | O138: 1 | P138: CONV | S138: =T138&".)" -> 2.) | T138: =IF(D138<>"",T135+1, T135) -> 2 | AK138: 107
D139: Pressure Maintenance Project Incentive Program. | O139: 1 | P139: CONV | AK139: 108
O140: 0 | P140: CONV | AK140: 109
C141: =IF(D141="","", S141) -> 3.) | D141: Isolation packer for horizontal wells must be set at a depth within 15 m TVD above the TVD of the lateral | O141: 1 | P141: CONV | S141: =T141&".)" -> 3.) | T141: =IF(D141<>"",T138+1, T138) -> 3 | AK141: 110
D142: section of the horizontal wellbore as per Subsection 49(a) of the regulation. | O142: 1 | P142: CONV | AK142: 111
O143: 0 | P143: CONV | AK143: 112
C144: =IF(D144="","", S144) -> 4.) | D144: The annulus of the well shall be pressure tested in accordance with Section 50 of the regulation. Please refer | O144: 1 | P144: CONV | S144: =T144&".)" -> 4.) | T144: =IF(D144<>"",T141+1, T141) -> 4 | AK144: 113
D145: to Appendix 1 of Informational Notice 04-02 for testing guidelines. | O145: 1 | P145: CONV | AK145: 114
O146: 0 | P146: CONV | AK146: 115
C147: =IF(D147="","", S147) -> 5.) | D147: As per Subsections 47(2)(a.1) and 51(1) of the regulation, Co. shall notify the Field District office within 24 | O147: 1 | P147: CONV | S147: =T147&".)" -> 5.) | T147: =IF(D147<>"",T144+1, T144) -> 5 | AK147: 116
D148: hours of discovery of casing leak. Co. shall apply with the Petroleum Branch within 30 days of leak | O148: 1 | P148: CONV | AK148: 117
D149: confirmation for plan of action and to determine isolation packer setting depth. | O149: 1 | P149: CONV | AK149: 118
C150: =IF(D150="","", S150) -> 6.) | D150: Unless otherwise authorized by an inspector, the packer must be set within 15 m (TVD) of the completed interval | O150: 1 | P150: CONV | S150: =T150&".)" -> 6.) | T150: =IF(D150<>"",T147+1, T147) -> 6 | AK150: 119
D151: as per Subsection 49(a) of the regulation. | O151: 1 | P151: CONV | AK151: 120
O152: 0 | P152: CONV | AK152: 121
C153: =IF(D153="","", S153) -> 7.) | D153: In the event Co. is to conduct a zone abandonment, please contact the Field District office to discuss the | O153: 1 | P153: CONV | S153: =T153&".)" -> 7.) | T153: =IF(D153<>"",T150+1, T150) -> 7 | AK153: 122
D154: witnessing and pressure testing of the abandonment plug. | O154: 1 | P154: CONV | AK154: 123
O155: 0 | P155: CONV | AK155: 124
C156: =IF(D156="","", S156) -> 8.) | D156: Once the well commences injection, Co. is to submit a 5 day initial injection report. | O156: 1 | P156: CONV | S156: =T156&".)" -> 8.) | T156: =IF(D156<>"",T153+1, T153) -> 8 | AK156: 125
O157: 0 | P157: CONV | AK157: 126
O158: 0 | P158: CONV | AK158: 127
C159: =IF(D159="","", S159) -> 9.) | D159: Please contact Landon Fraser at the Waskada District Office to address changes to the flowline license database | O159: 1 | P159: CONV | S159: =T159&".)" -> 9.) | T159: =IF(D159<>"",T156+1, T156) -> 9 | AK159: 128
D160: to accommodate possible changes in the flowline as a result of the conversion. | O160: 1 | P160: CONV | AK160: 129
O161: 0 | P161: CONV | AK161: =AK160+1 -> 130
C162: =IF(D162="","", S162) -> 10.) | D162: The well(s) is to be operated in accordance with the following Waterflood or Pressure Maintenance No(s).: | O162: 1 | P162: CONV | S162: =T162&".)" -> 10.) | T162: =IF(D162<>"",T159+1, T159) -> 10 | AK162: 131
D163: Licence No. | E163: UWI | G163: Unit Name | K163: WF or PM | L163: No. | O163: 1 | P163: CONV | AK163: 132
D164: =IF(C16="","",C16) ->  | E164: =IF(E16="","",E16) ->  | F164: =IF(E16="","",E16) ->  | K164: =IF(D164="","",IF(AD164=1,"",IF(AD164=2,"PM","WF"))) ->  | O164: 0 | P164: CONV | AD164: 3 | AE164: PM | AK164: 133
D165: =IF(C17="","",C17) ->  | E165: =IF(E17="","",E17) ->  | F165: =IF(E17="","",E17) ->  | K165: =IF(D165="","",IF(AD165=1,"",IF(AD165=2,"PM","WF"))) ->  | O165: 0 | P165: CONV | AD165: 3 | AE165: WF | AK165: 134
F166: =IF(E18="","",E18) ->  | O166: 0 | P166: CONV | AD166: 2 | AK166: 135
F167: =IF(E19="","",E19) ->  | O167: 0 | P167: CONV | AD167: 2 | AK167: 136
F168: =IF(E20="","",E20) ->  | O168: 0 | P168: CONV | AD168: 3 | AK168: 137
F169: =IF(E21="","",E21) ->  | O169: 0 | P169: CONV | AD169: 3 | AK169: 138
F170: =IF(E22="","",E22) ->  | O170: 0 | P170: CONV | AD170: 2 | AK170: 139
F171: =IF(E23="","",E23) ->  | O171: 0 | P171: CONV | AD171: 3 | AK171: 140
O172: 0 | P172: CONV | AK172: 141
O173: 0 | P173: CONV | AK173: 142
C174: =IF(D174="","", S174) -> 11.) | D174: Blow-out prevention equipment is be used during the deepening of the well. | O174: 1 | P174: CONV | S174: =T174&".)" -> 11.) | T174: =IF(D174<>"",T162+1, T162) -> 11 | AK174: 143
O175: 0 | P175: CONV | AK175: 144
O176: 0 | P176: CONV | AK176: 145
C177: =IF(D177="","", S177) -> 12.) | D177: Co. is to do a casing integrity assessment and Cement Bond Log on this well(s) and is required to submit the results | O177: 1 | P177: CONV | S177: =T177&".)" -> 12.) | T177: =IF(D177<>"",T174+1, T174) -> 12 | AK177: 146
D178: before deepening or drilling out the casing shoe. | O178: 1 | P178: CONV | AK178: 147
O179: 0 | P179: CONV | AK179: 148
C180: =IF(D180="","", S180) -> 13.) | D180: Co. must run full suite of logs from XXXX m to the new TD @ XXXX m (for Lic. XXXX) and from XXXX m to the new TD @ | O180: 1 | P180: CONV | S180: =T180&".)" -> 13.) | T180: =IF(D180<>"",T177+1, T177) -> 13 | AK180: 149
D181: XXXX m (for Lic. XXXX) in accordance with Section 113(1) of the Drilling and Production Regulation. | O181: =IF(D181="",0,1) -> 1 | P181: CONV | AK181: 150
O182: 0 | P182: CONV | AK182: 151
C183: =IF(D183="","", S183) ->  | O183: 0 | P183: CONV | S183: =T183&".)" -> 13.) | T183: =IF(D183<>"",T180+1, T180) -> 13 | AK183: 152
O184: 0 | P184: CONV | AK184: 153
O185: 0 | P185: CONV | AK185: 154
C186: =IF(D186="","", S186) ->  | O186: 0 | P186: CONV | S186: =T186&".)" -> 13.) | T186: =IF(D186<>"",T183+1, T183) -> 13 | AK186: 155
O187: 0 | P187: CONV | AK187: 156
O188: 0 | P188: CONV | AK188: 157
C189: =IF(D189="","", S189) ->  | O189: 0 | P189: CONV | S189: =T189&".)" -> 13.) | T189: =IF(D189<>"",T186+1, T186) -> 13 | AK189: 158
O190: 0 | P190: CONV | AK190: 159
O191: 0 | P191: CONV | AK191: 160
O192: 0 | P192: CONV | AK192: 161
O193: 0 | P193: CONV | AK193: 162
C194: =IF(D194="","", S194) -> 1.) | D194: The Field District office is to be notified prior to commencing operations. All pressure tests must be witnessed by | N194: SUSPENSION | O194: 1 | P194: SUSP | S194: =T194&".)" -> 1.) | T194: 1 | AK194: 163
D195: an Inspector. | O195: 1 | P195: SUSP | V195: 3 yrs from today | W195: 3 yr days | X195: today | Y195: 2.5 yr days | Z195: 2.5 yrs from today | AK195: 164
O196: 0 | P196: SUSP | V196: =W196+X196 -> 44760.11322 | W196: 1095.75 | X196: =C527 -> 43664.36322 | Y196: 913.125 | Z196: =X196+Y196 -> 44577.48822 | AK196: 165
C197: =IF(D197="","", S197) -> 2.) | D197: To obtain an official suspended status, Co. must inform the Field district office of the completion of the | O197: 1 | P197: SUSP | S197: =T197&".)" -> 2.) | T197: =IF(D197<>"",T194+1, T194) -> 2 | V197: =V196 -> 2026-07-19T02:43:02.420 | X197: =X196 -> 2023-07-19T08:43:02.420 | Z197: =Z196 -> 2026-01-17T11:43:02.420 | AK197: 166
D198: ="approved suspension operations. Co. will then be granted a suspension status until July 1, "&X202&". Co. is to" -> approved suspension operations. Co. will then be granted a suspension status until July 1, 2026. Co. is to | O198: 1 | P198: SUSP | V198: =EOMONTH(V197,0) -> 44772 | Z198: =EOMONTH(Z197,0) -> 44591 | AK198: 167
D199: ="submit an application to reactivate, suspend or abandon the well to the Petroleum Branch by June 1, "&X202&"." -> submit an application to reactivate, suspend or abandon the well to the Petroleum Branch by June 1, 2026. | O199: 1 | P199: SUSP | V199: =V198 -> 2026-07-31 | Z199: =Z198 -> 2026-01-31 | AK199: 168
O200: 0 | P200: SUSP | V200: =YEAR(V197) -> 2026 | Z200: =YEAR(Z197) -> 2026
C201: =IF(D201="","", S201) -> 3.) | D201: The Petroleum Branch recommendation is to use a permanent bridge plug set at proper abandonment depth in lieu | O201: 1 | P201: SUSP | S201: =T201&".)" -> 3.) | T201: =IF(D201<>"",T197+1, T197) -> 3 | U201: month-->> | V201: =MONTH(V197) -> 7 | X201: =MONTH(X197) -> 7 | Z201: =MONTH(Z197) -> 1 | AA201: <<--month | AK201: =AK199+1 -> 169
... 1049 more rows
